bitfinex/quotes_SOLUSD_20220208
["timestamp","ask_amount","ask_price","bid_price","bid_amount"]
[1644340036332,35.02515743,111.01,110.9,98.81329613]
[1644340036534,34.77515743,111.01,110.9,98.81329613]
[1644340037734,4.506,111.03,110.9,98.81329613]
[1644340037935,4.505,111.04,110.9,113.6049939]
[1644340038336,4.505,111.04,110.9,124.0880639]
[1644340038535,18.0175,111.06,110.9,124.0880639]
[1644340038739,41.79579915,111.05,110.9,124.0880639]
[1644340039140,47.79579915,111.05,110.9,124.0880639]
[1644340039338,70.33279915,111.05,110.9,124.0880639]
[1644340039539,70.33279915,111.05,110.9,123.8380639]
[1644340039940,4.505,111.04,110.9,123.8380639]
[1644340040141,37.9852964,111.03,110.9,123.8380639]
[1644340040841,37.9852964,111.03,110.9,124.0880639]
[1644340041239,37.9852964,111.03,110.91,0.44]
[1644340041445,37.9852964,111.03,110.94,13.5114]
[1644340041642,37.9852964,111.03,110.95,53.39]
[1644340041842,37.9852964,111.03,110.95,55.64685187]
[1644340042442,37.9852964,111.03,110.95,0.25]
[1644340042643,38.2352964,111.03,110.95,0.25]
[1644340042843,37.9852964,111.03,110.95,0.25]
[1644340043044,37.9852964,111.03,110.95,2.00685187]
[1644340043245,4.503,111.05,110.97,13.5111]
[1644340043446,0.03305449,111.06,110.97,13.5111]
[1644340043644,4.753,111.05,110.97,13.5111]
[1644340043843,0.25,111.05,110.97,13.5111]
[1644340044044,4.503,111.04,110.97,13.5111]
[1644340044247,35.28647927,111.03,110.97,13.5111]
[1644340044645,35.53647927,111.03,110.97,13.5111]
[1644340045044,19.54675449,111.05,110.97,13.7611]
[1644340045244,19.7637,111.05,110.97,13.7611]
[1644340045645,6.25,111.05,110.97,13.7611]
[1644340046052,36.203761,111.04,110.97,13.7611]
[1644340046245,36.453761,111.04,110.97,13.7611]
[1644340046446,36.203761,111.04,110.97,13.7611]
[1644340046851,36.453761,111.04,110.97,13.7611]
[1644340047047,36.453761,111.04,110.97,13.5111]
[1644340047547,40.61072541,111.02,110.97,13.5111]
[1644340047747,40.61072541,111.02,110.97,13.7611]
[1644340047946,0.25,111.04,110.97,13.7611]
[1644340048146,4.503,111.04,110.97,13.7611]
[1644340048348,4.753,111.04,110.97,13.5111]
[1644340048849,44.9372196,111.03,110.97,13.5111]
[1644340049050,44.9372196,111.03,110.96,13.5163]
[1644340049354,4.503,111.02,110.95,13.2094]
[1644340049548,13.5203,111.0,110.89,13.7729]
[1644340049748,52.26314275,110.99,110.89,13.7729]
[1644340049949,47.75714275,110.99,110.87,48.68615187]
[1644340050250,58.51414275,110.99,110.88,45.0714]
[1644340050453,72.03514275,110.99,110.88,45.0714]
[1644340050657,67.52814275,110.99,110.88,45.0714]
[1644340051054,67.27814275,110.99,110.88,44.5714]
[1644340051454,67.27814275,110.99,110.88,46.57825187]
[1644340051654,67.27814275,110.99,110.88,46.82825187]
[1644340051855,67.27814275,110.99,110.86,47.08725187]
[1644340051856,4.507,110.98,110.86,47.08725187]
[1644340052052,49.90133124,110.97,110.86,53.08725187]
[1644340052253,49.90133124,110.97,110.86,51.0804]
[1644340052254,4.507,110.96,110.86,51.0804]
[1644340052452,46.99343026,110.95,110.86,45.0804]
[1644340052653,4.508,110.94,110.85,13.52]
[1644340052851,48.18259279,110.93,110.86,13.5274]
[1644340053051,48.18259279,110.93,110.82,2.00685187]
[1644340053254,4.509,110.92,110.75,232.3433199]
[1644340053473,48.63772572,110.91,110.78,2.00685187]
[1644340053676,48.63772572,110.91,110.78,55.39685187]
[1644340053873,52.7107,110.92,110.78,61.39685187]
[1644340054073,48.2017,110.92,110.82,66.9226]
[1644340054277,4.51,110.96,110.82,67.1726]
[1644340054576,10.51,110.96,110.83,70.21760671]
[1644340054773,37.43540236,110.95,110.83,17.07760671]
[1644340054973,36.75042963,110.93,110.84,2.00212894]
[1644340055174,36.75042963,110.93,110.86,13.525]
[1644340055576,36.75042963,110.93,110.86,13.775]
[1644340055775,36.75042963,110.93,110.86,13.525]
[1644340055974,37.00042963,110.93,110.86,13.525]
[1644340056175,36.79064859,110.91,110.79,126.0441]
[1644340056375,36.79064859,110.91,110.79,132.0441]
[1644340056582,37.04064859,110.91,110.8,2.00212894]
[1644340056876,42.69294346,110.89,110.8,2.00212894]
[1644340057081,42.69294346,110.89,110.8,8.00212894]
[1644340057278,4.51,110.9,110.8,8.25212894]
[1644340057480,4.51,110.92,110.82,13.5306]
[1644340057677,0.25,110.9,110.82,13.5306]
[1644340057878,6.0,110.92,110.82,13.7806]
[1644340058077,0.25,110.92,110.82,15.78272894]
[1644340058277,35.09857336,110.91,110.82,15.78272894]
[1644340058778,35.34857336,110.91,110.82,13.7806]
[1644340058980,4.509,110.9,110.82,13.7806]
[1644340059178,41.28076032,110.89,110.82,13.7806]
[1644340059378,41.53076032,110.89,110.82,13.5306]
[1644340059590,4.509,110.9,110.82,13.5306]
[1644340059782,4.51,110.95,110.82,13.5306]
[1644340059980,4.51,110.95,110.82,68.92272894]
[1644340060580,39.78908749,110.94,110.82,68.92272894]
[1644340060781,39.78908749,110.94,110.82,69.17272894]
[1644340061181,45.78908749,110.94,110.82,69.17272894]
[1644340061380,45.78908749,110.94,110.82,68.92272894]
[1644340061581,45.78908749,110.94,110.82,15.53272894]
[1644340062085,43.53009723,110.92,110.82,15.53272894]
[1644340062282,36.97368321,110.9,110.82,15.53272894]
[1644340062781,4.51,110.89,110.81,13.5341]
[1644340062982,35.48858344,110.88,110.81,13.5341]
[1644340063183,4.51,110.87,110.81,13.5341]
[1644340063383,40.38268262,110.86,110.81,13.5341]
[1644340063783,0.25,110.88,110.81,13.5341]
[1644340063784,4.761,110.88,110.81,13.7841]
[1644340063984,0.25,110.88,110.81,13.7841]
[1644340064387,0.25,110.88,110.81,13.5341]
[1644340064689,58.51191197,110.88,110.81,13.5341]
[1644340064885,36.36140707,110.86,110.81,13.5341]
[1644340065090,36.36140707,110.86,110.8,13.535]
[1644340065286,36.61140707,110.86,110.8,13.535]
[1644340065685,36.36140707,110.86,110.8,13.535]
[1644340066088,36.36140707,110.86,110.8,13.785]
[1644340066285,36.36140707,110.86,110.8,13.535]
[1644340067086,36.61140707,110.86,110.8,13.535]
[1644340068087,41.12240707,110.86,110.8,13.535]
[1644340068688,48.0659,110.91,110.8,13.785]
[1644340068888,48.0659,110.91,110.8,15.79219774]
[1644340069088,4.51,110.9,110.8,69.18219774]
[1644340069289,4.51,110.9,110.8,15.79219774]
[1644340069689,45.57636295,110.89,110.8,15.79219774]
[1644340069891,4.51,110.88,110.8,15.79219774]
[1644340070087,18.0428,110.9,110.8,15.79219774]
[1644340070300,73.3431401,110.95,110.82,53.39]
[1644340070593,73.3431401,110.95,110.85,66.9177]
[1644340070594,0.03305449,110.95,110.85,66.9177]
[1644340070789,0.03305449,110.96,110.85,67.1677]
[1644340070989,0.03305449,110.96,110.86,13.65866484]
[1644340071191,40.10284785,110.96,110.86,73.04866484]
[1644340071390,40.06979336,110.96,110.87,13.65866484]
[1644340071591,40.06979336,110.96,110.87,19.65866484]
[1644340071793,40.06979336,110.96,110.88,11.6514671]
[1644340072189,40.06979336,110.96,110.88,11.9014671]
[1644340072392,40.06979336,110.96,110.89,13.521]
[1644340072792,40.06979336,110.96,110.89,13.771]
[1644340073990,40.06979336,110.96,110.89,13.271]
[1644340074794,40.06979336,110.96,110.89,13.021]
[1644340074997,41.92031448,110.94,110.86,10.288]
[1644340075195,43.3778149,110.92,110.86,10.288]
[1644340075494,4.508,110.91,110.86,10.288]
[1644340075796,39.04085167,110.9,110.86,10.288]
[1644340076397,45.04085167,110.9,110.86,10.288]
[1644340076597,39.29085167,110.9,110.86,10.288]
[1644340076799,39.04085167,110.9,110.86,10.288]
[1644340077198,52.57295167,110.9,110.86,10.288]
[1644340077402,39.04085167,110.9,110.86,10.288]
[1644340077604,4.509,110.93,110.86,10.288]
[1644340077805,4.509,110.93,110.87,2.00719774]
[1644340078000,4.009,110.93,110.87,55.39719774]
[1644340078206,4.009,110.93,110.87,55.64719774]
[1644340078501,49.50153851,110.93,110.88,15.52999774]
[1644340078702,49.50153851,110.93,110.88,13.5228]
[1644340078904,49.50153851,110.93,110.86,10.288]
[1644340079100,55.50153851,110.93,110.86,10.288]
[1644340079301,69.28013851,110.93,110.87,13.5286]
[1644340079700,69.28013851,110.93,110.86,10.288]
[1644340080302,55.50153851,110.93,110.86,10.288]
[1644340080503,55.50153851,110.93,110.86,23.8177]
[1644340080805,49.50153851,110.93,110.86,24.0677]
[1644340081203,4.009,110.93,110.86,26.07489774]
[1644340082907,4.009,110.93,110.86,79.46489774]
[1644340083608,4.009,110.93,110.86,77.4577]
[1644340085312,4.009,110.93,110.86,79.46489774]
[1644340085510,4.009,110.93,110.86,101.37515329]
[1644340085712,4.009,110.93,110.86,101.81515329]
[1644340085911,4.009,110.93,110.89,13.5172]
[1644340086112,0.009,110.93,110.89,72.9072]
[1644340086314,0.009,110.93,110.89,85.19991032]
[1644340086713,0.009,110.93,110.89,75.16439774]
[1644340086914,0.009,110.93,110.89,73.1572]
[1644340087233,0.009,110.93,110.89,83.19271258]
[1644340087415,0.009,110.93,110.89,29.80271258]
[1644340087617,0.009,110.93,110.89,83.19271258]
[1644340088215,0.009,110.93,110.89,23.80271258]
[1644340088815,0.009,110.93,110.89,13.7672]
[1644340090417,0.009,110.93,110.89,13.5172]
[1644340091816,0.009,110.93,110.89,13.7672]
[1644340093719,0.009,110.93,110.89,13.5172]
[1644340095017,0.009,110.93,110.87,13.5276]
[1644340095018,42.44404597,110.93,110.87,13.5276]
[1644340095218,42.69404597,110.93,110.87,13.5276]
[1644340096220,42.44404597,110.93,110.87,13.5276]
[1644340096422,42.69404597,110.93,110.87,13.5276]
[1644340096820,56.22204597,110.93,110.87,13.5276]
[1644340099223,57.46683158,110.93,110.87,13.5276]
[1644340099923,56.22204597,110.93,110.87,13.5276]
[1644340100125,56.22204597,110.93,110.84,45.0933]
[1644340100325,57.46683158,110.93,110.86,13.5299]
[1644340100526,63.46683158,110.93,110.86,13.5299]
[1644340102335,63.46683158,110.93,110.79,1.27528452]
[1644340102336,84.10775549,110.92,110.79,1.27528452]
[1644340102533,13.5334,110.89,110.78,5.95448518]
[1644340102734,46.11730591,110.88,110.79,13.5376]
[1644340102935,46.11730591,110.88,110.78,1.27528452]
[1644340103135,46.11730591,110.88,110.76,45.1481]
[1644340103136,52.11730591,110.88,110.76,45.1481]
[1644340103332,52.36730591,110.88,110.76,45.1481]
[1644340103533,52.36730591,110.88,110.76,45.1241]
[1644340103937,53.61209152,110.88,110.76,45.1241]
[1644340104335,13.5378,110.85,110.75,0.024]
[1644340104535,39.31732539,110.84,110.75,0.024]
[1644340104936,45.56732539,110.84,110.75,0.024]
[1644340105136,47.67508088,110.84,110.73,0.024]
[1644340105434,48.86602654,110.82,110.72,0.024]
[1644340105637,54.86602654,110.82,110.7,13.5468]
[1644340105835,55.11602654,110.82,110.71,0.024]
[1644340106037,55.11602654,110.82,110.69,0.024]
[1644340106638,54.11602654,110.82,110.69,2.01692542]
[1644340106837,54.11602654,110.82,110.71,13.5453]
[1644340107038,54.11602654,110.82,110.71,13.5693]
[1644340107238,54.11602654,110.82,110.71,19.8193]
[1644340108127,54.11602654,110.82,110.71,6.024]
[1644340108624,54.11602654,110.82,110.71,0.024]
[1644340108824,54.11602654,110.82,110.71,6.024]
[1644340109224,53.86602654,110.82,110.71,0.024]
[1644340109424,2.10775549,110.81,110.71,0.024]
[1644340109626,13.5504,110.78,110.69,0.024]
[1644340109840,36.68525608,110.77,110.69,0.024]
[1644340110040,38.79301157,110.77,110.69,0.024]
[1644340110241,2.10775549,110.76,110.69,0.024]
[1644340110439,2.10775549,110.76,110.68,10.257]
[1644340110642,34.34198325,110.75,110.68,10.257]
[1644340110840,34.59198325,110.75,110.68,10.257]
[1644340111042,40.59198325,110.75,110.68,10.257]
[1644340111441,54.14558325,110.75,110.68,10.257]
[1644340111839,40.59198325,110.75,110.68,10.257]
[1644340112640,40.59198325,110.75,110.65,0.024]
[1644340112842,34.59198325,110.75,110.64,2.01692542]
[1644340113143,34.59198325,110.75,110.68,13.5488]
[1644340113341,34.59198325,110.75,110.65,0.024]
[1644340113542,34.59198325,110.75,110.64,6.024]
[1644340113842,40.59198325,110.75,110.65,0.024]
[1644340114041,40.59198325,110.75,110.64,0.024]
[1644340114242,40.59198325,110.75,110.63,0.024]
[1644340114443,54.14308325,110.75,110.65,13.5529]
[1644340114642,54.14308325,110.75,110.65,13.5769]
[1644340117046,54.14308325,110.75,110.65,13.8269]
[1644340117448,40.59198325,110.75,110.65,13.8269]
[1644340118849,0.25,110.75,110.65,13.8269]
[1644340119049,23.3206,110.78,110.65,19.8269]
[1644340119253,45.425,110.79,110.66,53.39]
[1644340119450,45.425,110.79,110.69,13.5461]
[1644340119650,51.425,110.79,110.69,13.5461]
[1644340119849,45.56220943,110.78,110.69,13.5701]
[1644340120250,45.56220943,110.78,110.69,13.8201]
[1644340120655,45.81220943,110.78,110.69,13.5701]
[1644340120951,53.91996492,110.78,110.69,0.024]
[1644340121151,53.91996492,110.78,110.67,13.5507]
[1644340121352,53.91996492,110.78,110.68,0.024]
[1644340121551,67.46946492,110.78,110.68,0.024]
[1644340121850,90.55986492,110.78,110.68,0.024]
[1644340122752,90.55986492,110.78,110.68,13.5744]
[1644340122950,88.45210943,110.78,110.68,13.5504]
[1644340123155,88.20210943,110.78,110.68,13.5744]
[1644340123751,88.20210943,110.78,110.68,13.8244]
[1644340124153,68.65260943,110.78,110.68,13.8244]
[1644340126258,68.90260943,110.78,110.68,13.8244]
[1644340126658,68.65260943,110.78,110.68,13.8244]
[1644340126858,45.56220943,110.78,110.68,13.8244]
[1644340127858,45.56220943,110.78,110.68,67.2144]
[1644340128059,45.56220943,110.78,110.68,75.21154308]
[1644340128362,37.5845,110.82,110.68,75.21154308]
[1644340128558,52.7912,110.82,110.68,122.42584308]
[1644340129161,52.7912,110.82,110.68,122.86584308]
[1644340129162,46.7912,110.82,110.68,122.86584308]
[1644340129360,23.9448,110.84,110.69,1.71528452]
[1644340129562,1.24478561,110.9,110.7,1.29928452]
[1644340129762,13.5402,110.86,110.76,13.5387]
[1644340129962,13.5402,110.86,110.71,0.024]
[1644340130163,2.10775549,110.85,110.71,0.024]
[1644340130362,36.14740625,110.84,110.71,0.024]
[1644340130563,38.25962567,110.82,110.71,0.024]
[1644340130766,51.80402567,110.82,110.72,13.5451]
[1644340130969,51.80402567,110.82,110.72,13.5691]
[1644340130970,58.05402567,110.82,110.72,13.5691]
[1644340131165,60.16178116,110.82,110.72,13.5691]
[1644340131763,60.16178116,110.82,110.72,0.024]
[1644340132565,60.16178116,110.82,110.68,1.29928452]
[1644340132766,60.16178116,110.82,110.72,0.024]
[1644340132966,60.16178116,110.82,110.67,1.27528452]
[1644340133167,61.40656677,110.82,110.68,0.024]
[1644340133367,60.16178116,110.82,110.68,1.29928452]
[1644340133569,60.16178116,110.82,110.68,0.024]
[1644340133765,60.16178116,110.82,110.69,13.5494]
[1644340133965,60.16178116,110.82,110.69,14.82468452]
[1644340134167,60.16178116,110.82,110.7,0.024]
[1644340134366,59.91178116,110.82,110.7,0.024]
[1644340134567,57.80402567,110.82,110.7,0.024]
[1644340134966,57.80402567,110.82,110.7,13.5713]
[1644340135168,57.80402567,110.82,110.71,0.024]
[1644340135668,58.05402567,110.82,110.71,0.024]
[1644340136078,2.10775549,110.81,110.71,0.024]
[1644340136274,13.5507,110.78,110.71,0.024]
[1644340136470,37.51354652,110.77,110.69,0.024]
[1644340136768,43.76354652,110.77,110.67,24.9977]
[1644340136971,43.76354652,110.77,110.67,0.024]
[1644340137169,43.76354652,110.77,110.67,13.575]
[1644340138373,13.551,110.76,110.67,0.024]
[1644340138577,47.14895502,110.75,110.67,0.024]
[1644340138973,53.39895502,110.75,110.65,24.05868452]
[1644340139374,47.39895502,110.75,110.66,2.0020586]
[1644340139574,47.39895502,110.75,110.65,24.05868452]
[1644340140075,53.39895502,110.75,110.65,24.05868452]
[1644340140572,53.14895502,110.75,110.65,24.05868452]
[1644340140777,53.14895502,110.75,110.67,13.5521]
[1644340140975,6.0,110.75,110.67,13.5521]
[1644340141178,23.6604,110.78,110.68,2.0020586]
[1644340141376,23.6604,110.78,110.68,2.0260586]
[1644340141578,23.6604,110.78,110.68,2.2760586]
[1644340141776,23.6604,110.78,110.71,13.5461]
[1644340141973,34.81638662,110.77,110.71,13.5461]
[1644340142174,34.81638662,110.77,110.71,13.7961]
[1644340142374,0.25,110.77,110.71,13.7961]
[1644340142876,23.9104,110.78,110.71,13.7961]
[1644340143810,23.6604,110.78,110.71,13.7961]
[1644340144007,22.6604,110.78,110.71,13.7961]
[1644340144305,36.3533,110.8,110.71,13.7961]
[1644340144505,1.24478561,110.84,110.71,15.82312106]
[1644340144804,80.94291029,110.9,110.75,66.9291]
[1644340144805,1.24478561,110.87,110.75,66.9291]
[1644340145208,41.88971412,110.86,110.76,2.00302106]
[1644340145406,41.88971412,110.86,110.75,0.25]
[1644340146310,42.13971412,110.86,110.74,9.55230558]
[1644340146707,42.13971412,110.86,110.79,13.5361]
[1644340147111,41.88971412,110.86,110.79,13.7861]
[1644340147307,14.78028561,110.89,110.79,13.7861]
[1644340147513,72.22998561,110.91,110.79,13.7861]
[1644340147808,1.24478561,110.91,110.79,13.7861]
[1644340148012,1.24478561,110.91,110.79,15.78912106]
[1644340148208,1.24478561,110.92,110.8,53.39]
[1644340148412,41.02965592,110.91,110.83,13.5292]
[1644340148814,41.02965592,110.91,110.83,13.7792]
[1644340150009,41.27965592,110.91,110.83,13.7792]
[1644340150208,0.009,110.93,110.83,13.7792]
[1644340151110,48.10883087,110.93,110.83,13.7792]
[1644340151514,54.35883087,110.93,110.83,13.7792]
[1644340151910,56.46658636,110.93,110.83,14.5292]
[1644340152110,56.46658636,110.93,110.83,14.7792]
[1644340152312,54.35883087,110.93,110.83,14.7792]
[1644340152912,54.35883087,110.93,110.83,14.5292]
[1644340153112,56.46658636,110.93,110.83,14.7792]
[1644340153511,56.46658636,110.93,110.83,14.5292]
[1644340153814,56.46658636,110.93,110.83,14.7792]
[1644340154212,56.46658636,110.93,110.83,14.5292]
[1644340154813,69.99758636,110.93,110.83,14.5292]
[1644340155113,67.88983087,110.93,110.83,14.5292]
[1644340155311,54.35883087,110.93,110.83,14.5292]
[1644340155513,48.35883087,110.93,110.83,14.5292]
[1644340155711,48.35883087,110.93,110.83,14.7792]
[1644340155712,0.259,110.93,110.83,14.7792]
[1644340155912,0.009,110.93,110.83,14.7792]
[1644340156112,0.009,110.93,110.84,2.00302106]
[1644340156413,0.009,110.93,110.86,13.5256]
[1644340156815,0.009,110.93,110.86,13.7756]
[1644340159518,0.009,110.93,110.86,26.3296]
[1644340161322,0.009,110.93,110.86,79.7196]
[1644340161520,0.009,110.93,110.86,26.3296]
[1644340161822,0.009,110.93,110.86,79.7196]
[1644340162019,0.009,110.93,110.86,48.8624]
[1644340163220,0.009,110.93,110.86,26.0796]
[1644340164222,0.009,110.93,110.86,39.9156]
[1644340164821,0.009,110.93,110.86,93.3056]
[1644340165024,0.009,110.93,110.86,93.5556]
[1644340165223,0.009,110.93,110.86,125.51952106]
[1644340165523,0.009,110.93,110.86,134.40276576]
[1644340165822,0.009,110.93,110.88,66.9078]
[1644340166021,0.009,110.93,110.88,13.5178]
[1644340166222,0.009,110.93,110.88,73.1578]
[1644340166422,0.009,110.93,110.88,19.7678]
[1644340166624,0.009,110.93,110.88,13.7678]
[1644340167222,0.009,110.93,110.88,75.16082106]
[1644340168626,0.009,110.93,110.88,15.52082106]
[1644340168826,0.009,110.93,110.88,13.5178]
[1644340171329,0.009,110.93,110.88,13.7678]
[1644340172332,0.009,110.93,110.89,2.00302106]
[1644340172529,0.009,110.93,110.9,66.9065]
[1644340172728,0.009,110.93,110.9,67.1565]
[1644340173128,0.009,110.93,110.9,75.15952106]
[1644340175232,0.009,110.93,110.9,21.76952106]
[1644340175432,0.009,110.93,110.9,13.7665]
[1644340175631,0.009,110.93,110.9,13.5165]
[1644340175832,0.009,110.93,110.89,13.5257]
[1644340178433,0.009,110.93,110.89,13.7757]
[1644340180236,0.009,110.93,110.89,13.5257]
[1644340180433,0.009,110.93,110.83,1.0]
[1644340181438,0.009,110.93,110.85,13.5287]
[1644340181937,0.009,110.93,110.85,13.7787]
[1644340182338,0.009,110.93,110.86,1.99360247]
[1644340182537,0.009,110.93,110.88,13.522]
[1644340182742,0.009,110.93,110.88,13.772]
[1644340182942,0.009,110.93,110.88,67.162]
[1644340183241,0.009,110.93,110.88,13.772]
[1644340183439,0.009,110.93,110.88,13.522]
[1644340183638,0.009,110.93,110.87,45.0733]
[1644340183639,0.009,110.93,110.87,13.5272]
[1644340183838,0.009,110.93,110.87,13.7772]
[1644340184439,0.009,110.93,110.87,13.5272]
[1644340184641,0.009,110.93,110.83,1.0]
[1644340184860,0.009,110.93,110.86,13.5283]
[1644340185060,0.009,110.93,110.83,1.0]
[1644340185265,2.10775549,110.92,110.83,1.0]
[1644340185562,13.5339,110.9,110.83,1.0]
[1644340185761,39.61920686,110.89,110.83,1.0]
[1644340185962,41.72696235,110.89,110.83,1.0]
[1644340186160,47.97696235,110.89,110.83,1.0]
[1644340186563,45.86920686,110.89,110.83,1.0]
[1644340187164,13.5369,110.88,110.83,1.0]
[1644340187561,45.8570996,110.87,110.83,1.0]
[1644340187961,51.8570996,110.87,110.83,1.0]
[1644340188563,65.3934996,110.87,110.83,1.0]
[1644340188763,59.0,110.86,110.76,0.024]
[1644340188962,59.0,110.86,110.75,0.024]
[1644340189164,2.10775549,110.85,110.75,0.024]
[1644340189562,8.10775549,110.85,110.75,0.024]
[1644340189762,43.66590804,110.84,110.75,0.024]
[1644340190162,49.66590804,110.84,110.75,0.024]
[1644340190868,13.5419,110.83,110.75,13.5653]
[1644340191065,19.5419,110.83,110.75,13.5653]
[1644340191264,19.7919,110.83,110.75,13.5653]
[1644340192065,38.88481829,110.82,110.75,0.024]
[1644340192267,52.67711829,110.82,110.74,13.5425]
[1644340192666,58.67711829,110.82,110.74,13.5425]
[1644340193570,58.67711829,110.82,110.74,13.7925]
[1644340194171,58.67711829,110.82,110.74,13.5425]
[1644340195374,6.25,110.82,110.74,15.53625473]
[1644340195573,0.25,110.82,110.74,15.78625473]
[1644340195775,19.7906,110.83,110.74,15.78625473]
[1644340195976,19.7906,110.83,110.74,15.81025473]
[1644340197877,19.7906,110.83,110.74,13.8165]
[1644340198579,36.91163466,110.82,110.74,15.81150553]
[1644340198777,37.16163466,110.82,110.74,13.5425]
[1644340198977,43.16163466,110.82,110.74,13.5425]
[1644340199679,6.0,110.82,110.74,13.5425]
[1644340199876,19.5406,110.83,110.74,13.5425]
[1644340200076,19.5406,110.83,110.74,13.5665]
[1644340200277,19.5406,110.83,110.75,1.99500553]
[1644340200477,6.0,110.83,110.77,13.54]
[1644340200678,66.9411,110.85,110.77,13.54]
[1644340200885,6.0,110.85,110.77,13.79]
[1644340201079,29.9597,110.89,110.77,15.78987239]
[1644340201278,75.5925,110.89,110.77,15.78987239]
[1644340201681,38.91105204,110.88,110.77,15.78987239]
[1644340202079,44.91105204,110.88,110.77,15.78987239]
[1644340202682,13.5368,110.87,110.77,15.78987239]
[1644340202880,15.55745549,110.92,110.81,13.5329]
[1644340203083,15.55745549,110.92,110.81,13.0329]
[1644340203480,15.55745549,110.92,110.77,0.25]
[1644340203686,46.83057585,110.9,110.77,0.25]
[1644340203881,60.36367585,110.9,110.77,0.25]
[1644340204082,2.10775549,110.89,110.77,0.25]
[1644340204284,36.20010687,110.88,110.78,13.5389]
[1644340204482,36.20010687,110.88,110.76,0.024]
[1644340204682,2.10775549,110.87,110.76,0.024]
[1644340204882,40.34384497,110.85,110.74,0.024]
[1644340205183,69.15184497,110.85,110.74,0.024]
[1644340205381,69.15184497,110.85,110.74,13.5679]
[1644340206189,13.5423,110.82,110.74,0.024]
[1644340206384,44.76353902,110.81,110.73,4.68450455]
[1644340206583,50.76353902,110.81,110.73,18.22950455]
[1644340206785,51.01353902,110.81,110.73,18.22950455]
[1644340207683,13.545,110.8,110.73,18.22950455]
[1644340207885,43.19838246,110.79,110.73,18.22950455]
[1644340208286,43.44838246,110.79,110.73,18.22950455]
[1644340208687,49.44838246,110.79,110.73,18.22950455]
[1644340209284,49.19838246,110.79,110.73,18.22950455]
[1644340209684,49.19838246,110.79,110.73,18.47950455]
[1644340209885,6.0,110.79,110.73,18.47950455]
[1644340210087,19.5443,110.8,110.73,18.47950455]
[1644340210489,6.0,110.8,110.73,18.47950455]
[1644340210690,0.25,110.8,110.73,18.47950455]
[1644340210889,35.59266448,110.81,110.73,18.47950455]
[1644340211092,41.59266448,110.81,110.73,18.50350455]
[1644340211297,41.84266448,110.81,110.73,18.50350455]
[1644340211591,41.84266448,110.81,110.73,18.47950455]
[1644340212297,55.38566448,110.81,110.73,18.47950455]
[1644340213093,55.38566448,110.81,110.73,18.22950455]
[1644340214494,55.38566448,110.81,110.73,4.68450455]
[1644340215796,55.13566448,110.81,110.73,4.68450455]
[1644340215999,23.3784,110.83,110.73,18.47830455]
[1644340216306,6.0,110.83,110.73,20.47817694]
[1644340216599,52.7505,110.85,110.73,27.77746146]
[1644340216799,52.7505,110.85,110.73,27.75346146]
[1644340216998,40.41554006,110.84,110.74,0.024]
[1644340217197,59.95494006,110.84,110.74,0.024]
[1644340217597,60.20494006,110.84,110.74,0.024]
[1644340218199,60.20494006,110.84,110.74,13.5674]
[1644340218921,60.20494006,110.84,110.74,13.8174]
[1644340219518,59.95494006,110.84,110.74,13.8174]
[1644340220121,6.0,110.84,110.74,69.20727239]
[1644340220420,1.24478561,110.88,110.74,76.48255691]
[1644340220621,1.24478561,110.89,110.76,54.66528452]
[1644340220821,1.24478561,110.89,110.79,13.534]
[1644340221020,54.83985405,110.88,110.79,13.534]
[1644340221326,69.62905977,110.88,110.79,13.784]
[1644340221530,14.77908561,110.88,110.79,13.784]
[1644340221724,1.24478561,110.89,110.79,13.784]
[1644340221921,1.24478561,110.9,110.79,13.534]
[1644340222122,1.24478561,110.9,110.79,19.534]
[1644340222537,61.79894889,110.9,110.79,72.924]